bitfinex-derivatives/quotes_SOLF0:USTF0_20250831
["timestamp","ask_amount","ask_price","bid_price","bid_amount"]
[1756643278528,5.52484073,202.8,202.78,4.58899144]
[1756643278728,121.38,202.79,202.67,7.67]
[1756643279022,121.42,202.78,202.69,7.67]
[1756643279225,121.42,202.78,202.7,4.58914678]
[1756643279426,121.42,202.78,202.71,4.58914678]
[1756643279626,121.42,202.78,202.69,7.67]
[1756643280624,121.4,202.77,202.69,7.67]
[1756643283633,5.52484073,202.81,202.69,7.67]
[1756643283834,121.34,202.8,202.69,7.67]
[1756643287837,0.03,202.79,202.69,7.67]
[1756643288033,49.58,202.78,202.69,7.67]
[1756643292741,0.03,202.77,202.69,7.67]
[1756643295341,49.58,202.78,202.69,7.67]
[1756643296342,0.03,202.8,202.69,7.67]
[1756643296738,121.2,202.79,202.69,7.67]
[1756643298545,121.2,202.79,202.69,11.80555118]
[1756643298741,121.2,202.79,202.7,7.94]
[1756643303842,0.03,202.8,202.7,7.94]
[1756643304045,121.2,202.79,202.7,7.94]
[1756643305048,121.2,202.79,202.7,12.07555118]
[1756643305346,121.2,202.79,202.71,7.94]
[1756643305640,0.03,202.8,202.71,7.94]
[1756643305836,5.52484073,202.87,202.72,7.94]
[1756643306043,20.94,202.86,202.72,12.07555118]
[1756643306241,20.94,202.86,202.74,7.94]
[1756643313153,68.94,202.86,202.74,7.94]
[1756643317750,0.02,202.85,202.74,7.94]
[1756643319246,68.94,202.86,202.74,7.94]
[1756643319445,0.02,202.85,202.74,7.94]
[1756643320149,68.94,202.86,202.74,7.94]
[1756643320755,0.02,202.85,202.74,7.94]
[1756643320956,68.94,202.86,202.74,7.94]
[1756643321456,0.02,202.85,202.74,7.94]
[1756643322158,0.02,202.85,202.72,4.13555118]
[1756643322357,0.02,202.85,202.71,7.26]
[1756643322358,68.94,202.86,202.71,7.26]
[1756643323057,5.54484073,202.85,202.68,7.26]
[1756643323254,5.52484073,202.84,202.68,7.26]
[1756643323459,0.02,202.83,202.68,7.26]
[1756643323961,5.52484073,202.85,202.68,7.26]
[1756643324157,0.02,202.84,202.68,7.26]
[1756643324358,5.52484073,202.84,202.68,7.26]
[1756643324559,0.02,202.84,202.68,7.26]
[1756643324958,5.52484073,202.85,202.68,7.26]
[1756643325260,0.02,202.83,202.68,7.26]
[1756643325560,5.52484073,202.84,202.68,7.26]
[1756643325760,0.02,202.83,202.68,7.26]
[1756643325951,5.52484073,202.84,202.68,7.26]
[1756643326553,0.02,202.83,202.68,7.26]
[1756643326755,5.52484073,202.84,202.68,7.26]
[1756643326957,0.02,202.83,202.68,7.26]
[1756643327458,5.52484073,202.84,202.68,7.26]
[1756643327855,0.02,202.83,202.68,7.26]
[1756643328863,5.52484073,202.84,202.68,7.26]
[1756643329264,0.02,202.83,202.68,7.26]
[1756643330965,5.52484073,202.84,202.68,7.26]
[1756643331163,5.52484073,202.83,202.68,7.26]
[1756643331369,0.02,202.82,202.68,7.26]
[1756643331568,5.52484073,202.83,202.68,7.26]
[1756643332168,0.02,202.82,202.68,7.26]
[1756643332471,5.52484073,202.83,202.68,7.26]
[1756643332670,0.02,202.82,202.68,7.26]
[1756643333369,0.02,202.8,202.68,7.26]
[1756643333571,36.22,202.81,202.68,7.26]
[1756643333972,0.02,202.8,202.68,7.26]
[1756643334572,36.22,202.81,202.68,7.26]
[1756643334764,0.02,202.8,202.68,7.26]
[1756643335071,36.22,202.81,202.68,7.26]
[1756643335272,0.02,202.81,202.68,7.26]
[1756643335471,0.02,202.79,202.68,7.26]
[1756643335861,55.88,202.8,202.68,7.26]
[1756643336061,0.02,202.79,202.68,7.26]
[1756643336867,55.88,202.8,202.68,7.26]
[1756643337067,0.02,202.79,202.68,7.26]
[1756643337671,55.88,202.8,202.68,7.26]
[1756643338571,0.02,202.79,202.68,7.26]
[1756643338767,55.88,202.8,202.68,7.26]
[1756643339071,0.02,202.79,202.68,7.26]
[1756643339470,55.88,202.8,202.68,7.26]
[1756643340575,387.42,202.8,202.68,7.26]
[1756643340874,0.02,202.79,202.63,7.26]
[1756643341265,392.94484073,202.8,202.63,7.26]
[1756643341676,0.02,202.79,202.63,7.26]
[1756643341974,392.94484073,202.8,202.63,7.26]
[1756643343178,5.54484073,202.79,202.63,7.26]
[1756643343474,5.52484073,202.79,202.63,7.26]
[1756643343880,0.02,202.78,202.63,7.26]
[1756643344078,5.52484073,202.79,202.63,7.26]
[1756643344376,0.02,202.78,202.63,7.26]
[1756643344979,5.52484073,202.79,202.63,7.26]
[1756643345273,0.02,202.78,202.63,7.26]
[1756643345681,5.52484073,202.79,202.63,7.26]
[1756643346276,0.02,202.78,202.63,7.26]
[1756643346976,5.52484073,202.79,202.63,7.26]
[1756643347372,0.02,202.78,202.63,7.26]
[1756643347676,392.94484073,202.8,202.63,7.26]
[1756643348076,5.52484073,202.79,202.63,7.26]
[1756643348273,392.94484073,202.8,202.63,7.26]
[1756643348479,0.02,202.79,202.63,7.26]
[1756643348884,392.94484073,202.8,202.63,7.26]
[1756643349087,5.52484073,202.79,202.63,7.26]
[1756643349378,0.02,202.76,202.63,7.26]
[1756643349574,0.02,202.75,202.63,7.26]
[1756643349775,5.52484073,202.76,202.63,7.26]
[1756643349982,0.02,202.75,202.63,7.26]
[1756643350182,0.02,202.75,202.53,4.13555118]
[1756643350481,0.02,202.74,202.54,7.9]
[1756643350680,0.02,202.72,202.54,7.9]
[1756643350880,121.18,202.73,202.54,7.9]
[1756643351682,0.02,202.73,202.54,7.9]
[1756643351881,0.02,202.71,202.54,7.9]
[1756643352082,0.02,202.69,202.54,7.9]
[1756643352385,0.02,202.67,202.54,7.9]
[1756643352585,5.52484073,202.75,202.54,7.9]
[1756643352781,121.2,202.74,202.54,7.9]
[1756643352988,121.18,202.74,202.54,7.9]
[1756643353486,0.02,202.73,202.54,7.9]
[1756643353983,121.18,202.74,202.54,7.9]
[1756643354686,0.02,202.73,202.54,7.9]
[1756643356188,121.18,202.74,202.54,7.9]
[1756643356585,126.70484073,202.74,202.54,7.9]
[1756643357484,0.02,202.73,202.54,7.9]
[1756643357683,126.70484073,202.74,202.54,7.9]
[1756643357880,0.02,202.73,202.54,7.9]
[1756643358677,126.70484073,202.74,202.54,7.9]
[1756643359493,0.02,202.73,202.54,7.9]
[1756643359679,126.70484073,202.74,202.54,7.9]
[1756643359880,0.02,202.72,202.54,7.9]
[1756643360080,126.70484073,202.74,202.54,7.9]
[1756643360283,5.52484073,202.73,202.54,7.9]
[1756643360684,0.02,202.72,202.54,7.9]
[1756643360889,126.70484073,202.74,202.54,7.9]
[1756643361090,5.52484073,202.73,202.54,7.9]
[1756643361292,0.02,202.73,202.54,7.9]
[1756643361491,126.70484073,202.74,202.54,7.9]
[1756643361690,0.02,202.73,202.54,7.9]
[1756643362191,0.02,202.72,202.54,7.9]
[1756643362388,0.02,202.73,202.54,7.9]
[1756643362590,0.02,202.7,202.54,7.9]
[1756643362782,5.52484073,202.68,202.54,7.9]
[1756643362983,0.02,202.66,202.54,7.9]
[1756643363191,331.72,202.65,202.54,7.9]
[1756643363988,0.05,202.64,202.54,7.9]
[1756643364294,331.72,202.65,202.54,7.9]
[1756643364493,0.05,202.64,202.54,7.9]
[1756643364892,331.72,202.65,202.54,7.9]
[1756643365091,0.05,202.64,202.54,7.9]
[1756643365394,331.72,202.65,202.54,7.9]
[1756643365595,0.05,202.64,202.54,7.9]
[1756643366896,121.22,202.63,202.54,7.9]
[1756643368296,0.05,202.64,202.54,7.9]
[1756643368495,121.24,202.63,202.54,7.9]
[1756643372094,331.72,202.65,202.54,7.9]
[1756643372296,121.24,202.64,202.54,7.9]
[1756643373505,121.24,202.63,202.54,7.9]
[1756643375300,121.24,202.63,202.46,7.9]
[1756643375497,0.05,202.62,202.46,7.9]
[1756643375902,121.24,202.63,202.46,7.9]
[1756643376103,0.05,202.62,202.46,7.9]
[1756643376303,121.24,202.63,202.46,7.9]
[1756643376806,0.05,202.62,202.46,7.9]
[1756643377206,121.24,202.63,202.46,7.9]
[1756643377597,0.05,202.62,202.46,7.9]
[1756643377800,0.04,202.62,202.46,7.9]
[1756643379110,43.44,202.61,202.46,7.9]
[1756643383513,0.04,202.6,202.46,7.9]
[1756643388405,43.44,202.61,202.46,7.9]
[1756643388812,0.04,202.6,202.46,7.9]
[1756643389013,43.44,202.61,202.46,7.9]
[1756643389716,0.04,202.6,202.46,7.9]
[1756643390114,43.44,202.61,202.46,7.9]
[1756643390309,0.04,202.6,202.46,7.9]
[1756643391015,0.04,202.6,202.46,12.02428976]
[1756643391217,0.04,202.6,202.47,7.98]
[1756643391518,43.44,202.61,202.47,12.10428976]
[1756643391719,43.44,202.61,202.48,7.98]
[1756643392216,43.44,202.61,202.48,4.12428976]
[1756643392416,43.44,202.61,202.5,7.98]
[1756643393307,43.44,202.61,202.51,7.98]
[1756643393917,43.48,202.61,202.51,7.98]
[1756643397217,43.48,202.61,202.51,12.10428976]
[1756643397412,43.48,202.61,202.52,7.98]
[1756643398422,0.04,202.67,202.52,12.10428976]
[1756643398619,0.04,202.66,202.53,7.98]
[1756643398819,26.16,202.67,202.53,7.98]
[1756643399320,0.04,202.66,202.53,7.98]
[1756643399520,0.04,202.66,202.55,7.98]
[1756643399820,26.16,202.67,202.56,4.57714713]
[1756643400021,0.04,202.66,202.57,4.57714713]
[1756643400214,0.04,202.66,202.58,4.57714713]
[1756643400417,26.16,202.67,202.59,4.57714713]
[1756643400615,0.04,202.66,202.6,4.57714713]
[1756643400922,26.2,202.67,202.61,4.57714713]
[1756643401117,26.2,202.67,202.6,7.98]
[1756643401326,0.04,202.68,202.61,4.52880214]
[1756643401517,0.04,202.68,202.62,4.52880214]
[1756643401723,122.62,202.69,202.63,4.52880214]
[1756643402025,0.04,202.68,202.64,4.52829796]
[1756643402224,0.04,202.68,202.65,4.52829796]
[1756643402423,122.62,202.69,202.66,4.52829796]
[1756643402623,0.04,202.68,202.67,4.52829796]
[1756643407123,0.54,202.68,202.67,4.52829796]
[1756643407629,0.54,202.68,202.56,7.9]
[1756643407830,5.52484073,202.67,202.56,7.9]
[1756643408628,5.52484073,202.65,202.56,7.9]
[1756643408828,122.64,202.64,202.56,7.9]
[1756643410026,122.64,202.64,202.49,7.9]
[1756643414431,122.64,202.64,202.5,7.9]
[1756643415227,5.52484073,202.66,202.5,7.9]
[1756643415228,5.52484073,202.66,202.5,202.9]
[1756643415430,10.92169971,202.8,202.53,14.81]
[1756643415633,7.38,202.84,202.7,4.15067312]
[1756643416326,7.38,202.84,202.68,4.15067312]
[1756643416527,7.38,202.84,202.75,4.15067312]
[1756643416729,7.38,202.84,202.76,4.18992265]
[1756643416934,7.38,202.84,202.77,4.18992265]
[1756643417231,7.38,202.84,202.78,4.18992265]
[1756643417437,7.38,202.85,202.79,4.18992265]
[1756643417633,7.38,202.85,202.8,4.18992265]
[1756643417831,7.38,202.85,202.74,4.15067312]
[1756643418032,7.38,202.85,202.71,5.49429319]
[1756643418033,7.38,202.85,202.75,8.33452808]
[1756643418228,7.38,202.85,202.76,4.18385496]
[1756643418436,7.38,202.85,202.77,9.41084185]
[1756643418635,7.38,202.85,202.78,9.41084185]
[1756643418834,7.38,202.85,202.74,4.15067312]
[1756643418835,7.38,202.85,202.79,9.41084185]
[1756643419035,7.38,202.85,202.8,9.41084185]
[1756643419232,7.02,202.86,202.81,5.22698689]
[1756643419530,7.38,202.85,202.82,5.22698689]
[1756643419834,7.02,202.86,202.83,10.25226651]
[1756643420036,7.02,202.86,202.84,5.02527962]
[1756643420037,7.38,202.85,202.84,5.02527962]
[1756643421729,7.38,202.85,202.73,4.15067312]
[1756643421932,7.38,202.85,202.74,14.15293766]
[1756643422134,7.38,202.85,202.75,14.15293766]
[1756643422333,7.38,202.85,202.76,14.15293766]
[1756643422534,7.38,202.85,202.77,14.15293766]
[1756643422735,7.38,202.85,202.78,14.15293766]
[1756643422927,7.02,202.86,202.79,9.99806146]
[1756643423130,7.02,202.86,202.8,9.99806146]
[1756643423328,7.02,202.86,202.81,9.99806146]
[1756643423533,7.02,202.86,202.72,4.15067312]
[1756643423534,7.38,202.85,202.82,5.08804934]
[1756643423734,7.38,202.85,202.65,8.24143979]
[1756643423735,7.38,202.85,202.7,4.15067312]
[1756643423939,7.38,202.85,202.71,13.74020583]
[1756643424238,7.38,202.85,202.72,13.74020583]
[1756643424438,7.02,202.86,202.73,13.74020583]
[1756643424638,7.38,202.85,202.74,13.74020583]
[1756643424833,7.02,202.86,202.75,13.74020583]
[1756643425029,7.02,202.86,202.76,13.74020583]
[1756643425235,7.02,202.86,202.77,9.58977483]
[1756643425440,7.02,202.86,202.62,22.24143979]
[1756643425441,7.02,202.86,202.78,9.49947204]
[1756643425741,7.38,202.85,202.79,4.68509175]
[1756643425941,7.38,202.85,202.71,4.15067312]
[1756643426140,7.02,202.86,202.72,13.64348695]
[1756643426438,7.38,202.85,202.73,13.64348695]
[1756643426737,7.38,202.85,202.74,13.64348695]
[1756643426939,7.38,202.85,202.75,13.64348695]
[1756643427236,7.02,202.86,202.76,13.64166072]
[1756643427437,7.38,202.85,202.77,9.49607716]
[1756643427740,7.38,202.85,202.7,4.15067312]
[1756643427741,7.38,202.85,202.78,4.68174651]
[1756643428040,7.38,202.85,202.79,4.68174651]
[1756643428240,7.38,202.85,202.7,4.15067312]
[1756643428436,7.38,202.85,202.71,13.63532078]
[1756643428637,7.38,202.85,202.72,13.63532078]
[1756643428942,7.38,202.85,202.73,13.63532078]
[1756643429141,7.38,202.85,202.74,13.63532078]
[1756643429343,7.38,202.85,202.75,13.63532078]
[1756643429539,7.38,202.85,202.76,13.63532078]
[1756643429742,7.38,202.85,202.77,9.49029537]
[1756643430041,7.38,202.85,202.78,4.6788838]
[1756643430341,7.38,202.85,202.79,4.6788838]
[1756643430536,7.38,202.85,202.71,4.15067312]
[1756643430743,7.38,202.85,202.72,13.67408813]
[1756643430933,7.38,202.85,202.73,13.67408813]
[1756643431133,7.02,202.86,202.74,13.67408813]
[1756643431338,7.38,202.85,202.75,13.67408813]
[1756643431533,7.02,202.86,202.76,13.67408813]
[1756643431738,7.02,202.86,202.77,9.48822506]
[1756643431938,7.38,202.85,202.69,4.15067312]
[1756643432240,7.02,202.86,202.7,13.67440639]
[1756643432445,7.38,202.85,202.71,13.67440639]
[1756643432737,7.02,202.86,202.72,13.66124801]
[1756643432938,7.02,202.86,202.73,9.47526843]
[1756643433146,7.02,202.86,202.67,4.15067312]
[1756643433147,7.38,202.85,202.66,4.15067312]
[1756643433442,7.02,202.86,202.67,13.64414489]
[1756643433637,7.38,202.85,202.68,13.64414489]
[1756643433840,7.02,202.86,202.69,13.64414489]
[1756643434137,7.02,202.86,202.7,13.64414489]
[1756643434347,7.02,202.86,202.71,9.47615603]
[1756643434644,7.02,202.86,202.65,4.15067312]
[1756643434645,7.38,202.85,202.72,4.67887279]
[1756643434945,7.38,202.85,202.73,4.68080296]
[1756643435140,7.38,202.85,202.65,4.15067312]
[1756643435440,7.02,202.86,202.66,17.80189654]
[1756643435642,7.38,202.85,202.67,13.65122342]
[1756643435943,7.38,202.85,202.68,13.65122342]
[1756643436141,7.02,202.86,202.69,13.65122342]
[1756643436437,7.02,202.86,202.7,13.65122342]
[1756643436641,7.02,202.86,202.71,9.48102566]
[1756643436945,7.38,202.85,202.72,4.68125909]
[1756643437143,7.38,202.85,202.73,4.68125909]
[1756643437442,7.38,202.85,202.65,4.15067312]
[1756643437642,7.02,202.86,202.66,13.65755867]
[1756643437844,7.91,202.85,202.67,13.65755867]
[1756643438037,7.02,202.86,202.68,13.65755867]
[1756643438238,7.02,202.86,202.69,13.65755867]
[1756643438439,7.91,202.85,202.7,13.65755867]
[1756643438642,7.91,202.85,202.71,9.48602751]
[1756643438840,7.91,202.85,202.72,4.68372876]
[1756643439144,7.91,202.85,202.65,4.15067312]
[1756643439346,7.91,202.85,202.66,13.66037302]
[1756643439540,7.91,202.85,202.55,10.8137998]
[1756643439541,14.81,202.83,202.67,13.66037302]
[1756643439845,21.79,202.86,202.59,8.24143979]
[1756643439846,7.91,202.78,202.59,4.15067312]
[1756643440040,19.56,202.77,202.6,17.81520996]
[1756643440241,19.56,202.77,202.61,13.66453684]
[1756643440441,7.91,202.76,202.62,13.66453684]
[1756643440638,7.91,202.76,202.63,4.68602035]
[1756643440947,7.91,202.76,202.64,4.68602035]
[1756643441244,7.91,202.76,202.65,4.68602035]
[1756643441443,7.91,202.76,202.66,4.68602035]
[1756643441644,7.91,202.76,202.57,4.15067312]
[1756643441844,7.91,202.76,202.58,8.74402071]
[1756643442042,7.91,202.76,202.59,8.74402071]
[1756643442249,7.91,202.76,202.6,8.74402071]
[1756643442546,7.91,202.76,202.61,8.74402071]
[1756643442747,7.52,202.75,202.62,8.74402071]
[1756643443042,7.52,202.75,202.63,4.68714464]
[1756643443440,7.91,202.74,202.64,4.68781966]
[1756643443735,7.91,202.74,202.65,4.68781966]
[1756643443935,7.91,202.74,202.66,4.68781966]
[1756643444138,7.91,202.74,202.57,4.15067312]
[1756643444336,7.91,202.74,202.58,8.74615935]
[1756643444539,7.91,202.74,202.59,8.74615935]
[1756643444739,7.91,202.74,202.6,8.74615935]
[1756643444943,7.91,202.74,202.61,8.74615935]
[1756643445156,7.91,202.74,202.62,8.74615935]
[1756643445343,7.91,202.74,202.63,4.6881467]
[1756643445543,7.91,202.74,202.64,4.6881467]
[1756643445737,7.91,202.74,202.65,4.6881467]
[1756643445935,7.91,202.74,202.66,4.6881467]
[1756643446137,7.91,202.74,202.57,4.15067312]
[1756643446335,7.91,202.74,202.58,8.74749758]
[1756643446537,7.91,202.86,202.6,4.15067312]
[1756643446850,331.62,202.87,202.65,4.15067312]
[1756643446851,7.91,202.84,202.65,4.15067312]
[1756643447044,7.91,202.84,202.66,8.74749758]
[1756643447345,7.91,202.84,202.67,8.74749758]
[1756643447546,7.91,202.84,202.68,8.74749758]
[1756643447742,7.91,202.84,202.69,8.74749758]
[1756643447942,7.91,202.84,202.7,4.68886401]
[1756643448143,7.91,202.84,202.71,4.68886401]
[1756643448345,7.91,202.84,202.72,4.68886401]
[1756643448543,7.91,202.84,202.73,4.68886401]
[1756643448746,7.91,202.84,202.74,4.68886401]
[1756643449041,124.18,202.83,202.65,4.15067312]
[1756643449247,7.91,202.82,202.66,8.74642376]
[1756643449448,7.91,202.82,202.67,8.74642376]
[1756643449747,7.91,202.82,202.68,8.74642376]
[1756643449942,7.91,202.82,202.69,8.74642376]
[1756643450147,7.91,202.82,202.7,4.68867071]
[1756643450346,7.91,202.82,202.71,4.68155153]
[1756643450646,7.91,202.82,202.72,4.68155153]
[1756643450847,7.91,202.82,202.73,4.68155153]
[1756643451150,61.28,202.81,202.74,4.68214846]
[1756643451348,61.28,202.81,202.64,4.15067312]
[1756643451547,61.28,202.81,202.65,8.7411935]
[1756643451748,61.28,202.81,202.66,8.7411935]
[1756643451949,61.28,202.81,202.67,8.7411935]
[1756643452148,61.28,202.81,202.68,8.7411935]
[1756643452350,7.91,202.8,202.69,8.7411935]
[1756643452548,97.62,202.79,202.7,8.74133708]
[1756643452748,97.62,202.79,202.71,4.68258792]
[1756643452948,97.62,202.79,202.72,4.68258792]
[1756643453145,97.62,202.79,202.73,4.68258792]
[1756643453348,7.91,202.78,202.74,4.68258792]
[1756643453547,7.91,202.78,202.75,4.68258792]
[1756643453748,7.91,202.78,202.66,4.15067312]
[1756643454049,7.91,202.78,202.67,8.74395985]
[1756643454250,7.91,202.78,202.68,8.74395985]
[1756643454451,7.91,202.78,202.69,8.74395985]
[1756643454648,7.91,202.78,202.7,4.0598204]
[1756643454844,7.91,202.78,202.71,8.74569545]
[1756643455051,7.91,202.78,202.72,4.68587505]
[1756643455250,7.91,202.78,202.73,4.68587505]
[1756643455449,97.62,202.79,202.74,4.68587505]
[1756643455651,7.91,202.78,202.75,4.68587505]
[1756643455950,7.91,202.78,202.76,4.68587505]
[1756643456147,7.91,202.78,202.67,4.15067312]
[1756643456349,7.91,202.78,202.68,8.75290819]
[1756643456549,7.91,202.78,202.69,8.75290819]
[1756643456749,7.91,202.78,202.7,8.75290819]
[1756643456957,7.91,202.78,202.71,8.75290819]
[1756643457157,7.91,202.86,202.72,8.75290819]
[1756643457362,124.0,202.85,202.73,8.75290819]
[1756643457564,7.91,202.84,202.74,4.68789861]
[1756643457762,7.91,202.84,202.75,4.68789861]
[1756643457952,7.91,202.84,202.76,4.68789861]
[1756643458153,7.91,202.84,202.77,4.68789861]
[1756643458353,7.91,202.84,202.78,4.68789861]
[1756643458656,7.91,202.84,202.69,4.15067312]
[1756643458857,7.91,202.84,202.7,8.76195711]
[1756643459060,7.91,202.84,202.71,8.76195711]
[1756643459262,7.91,202.84,202.69,4.15067312]
[1756643459263,7.91,202.84,202.72,8.76195711]
[1756643459561,7.91,202.84,202.73,8.76195711]
[1756643459757,7.91,202.84,202.74,8.76195711]
[1756643459959,7.91,202.84,202.75,4.69536506]
[1756643460259,7.91,202.84,202.76,4.69536506]
[1756643460463,7.91,202.84,202.77,4.69536506]
[1756643460664,7.91,202.84,202.78,4.69536506]
[1756643460853,7.91,202.84,202.79,4.69536506]
[1756643461165,7.91,202.84,202.7,4.15067312]
[1756643461460,7.91,202.84,202.71,8.7732061]
[1756643461660,7.91,202.84,202.72,8.7732061]
[1756643461862,7.91,202.84,202.73,8.7732061]
[1756643462063,7.91,202.84,202.74,8.7732061]
[1756643462261,7.91,202.84,202.7,4.15067312]
[1756643462262,7.91,202.84,202.75,8.7732061]
[1756643462467,7.91,202.84,202.76,4.70091976]
[1756643462667,7.91,202.84,202.77,4.70091976]
[1756643462867,7.91,202.84,202.78,4.70091976]
[1756643463070,124.0,202.85,202.79,4.70091976]
[1756643463264,331.62,202.87,202.8,4.70091976]
[1756643463461,123.8,202.86,202.81,4.70200576]
[1756643463662,123.8,202.86,202.82,4.70200576]
[1756643463864,123.8,202.86,202.73,4.15067312]
[1756643463865,7.91,202.85,202.83,4.70200576]
[1756643464064,7.91,202.85,202.73,4.15067312]
[1756643464269,7.91,202.85,202.74,12.92477185]
[1756643464471,123.84,202.84,202.75,8.77409873]
[1756643464677,331.62,202.87,202.76,8.77409873]
[1756643464968,331.62,202.87,202.77,8.77409873]
[1756643464969,123.9,202.86,202.77,8.77409873]
[1756643465274,123.9,202.86,202.78,8.77409873]
[1756643465468,123.9,202.86,202.79,8.77409873]
[1756643465768,123.9,202.86,202.8,8.77409873]
[1756643466068,123.9,202.86,202.81,8.77409873]
[1756643466263,123.9,202.86,202.82,8.77409873]
[1756643466459,123.9,202.86,202.79,4.15067312]
[1756643466460,123.9,202.86,202.83,8.77409873]
[1756643466667,123.9,202.86,202.84,4.70092899]
[1756643466862,123.9,202.86,202.85,4.70092899]
[1756643467672,331.62,202.87,202.85,4.70092899]
[1756643467869,331.62,202.87,202.86,4.70092899]
[1756643473676,455.22,202.87,202.86,4.70092899]
[1756643473871,7.91,202.92,202.86,4.70092899]
[1756643474073,63.54,202.91,202.86,4.70092899]
[1756643474376,63.54,202.91,202.87,4.68712225]
[1756643474575,7.24,202.9,202.77,4.15067312]
[1756643474778,7.24,202.9,202.78,12.89776502]
[1756643474979,7.24,202.9,202.79,8.7470919]
[1756643475176,7.24,202.9,202.8,8.7470919]
[1756643475376,7.24,202.9,202.81,4.68577482]
[1756643475574,7.24,202.9,202.76,4.15067312]
[1756643475575,7.24,202.9,202.82,4.68577482]
[1756643475880,7.24,202.9,202.83,4.68577482]
[1756643476180,7.24,202.9,202.84,4.68577482]
[1756643476375,7.24,202.9,202.85,4.68577482]
[1756643476571,7.24,202.9,202.76,4.15067312]
[1756643476771,7.24,202.9,202.77,8.74376013]
[1756643476975,7.24,202.9,202.78,8.74376013]
[1756643477173,7.24,202.9,202.79,8.74376013]
[1756643477374,7.24,202.9,202.8,8.74376013]
[1756643477577,7.24,202.9,202.81,8.74376013]
[1756643477779,7.24,202.9,202.76,4.15067312]
[1756643477780,7.24,202.9,202.82,4.68294437]
[1756643477983,7.24,202.9,202.83,4.68294437]
[1756643478176,7.24,202.9,202.84,4.68294437]
[1756643478378,63.54,202.91,202.85,4.68294437]
[1756643478682,7.24,202.9,202.77,4.05787985]
[1756643478986,7.24,202.9,202.78,8.74018805]
[1756643479180,7.24,202.9,202.79,4.6823082]
[1756643479385,7.24,202.9,202.8,4.6823082]
[1756643479577,7.24,202.9,202.81,4.6823082]
[1756643479779,63.54,202.91,202.72,77.55407014]
[1756643480081,7.24,202.9,202.73,8.74030799]
[1756643480282,7.24,202.9,202.74,8.74030799]
[1756643480583,7.24,202.9,202.75,8.74030799]
[1756643480776,7.24,202.9,202.76,8.74030799]
[1756643480974,7.24,202.9,202.77,4.68220276]
[1756643481181,7.24,202.9,202.78,4.68220276]
[1756643481380,7.24,202.9,202.79,4.68220276]
[1756643481576,7.24,202.9,202.8,4.68220276]
[1756643481781,7.24,202.9,202.72,73.40339702]
[1756643481782,331.42,202.9,202.72,73.40339702]
[1756643481981,7.24,202.89,202.73,8.71234472]
[1756643482183,7.24,202.89,202.74,8.71234472]
[1756643482381,7.24,202.89,202.75,8.71234472]
[1756643482582,7.24,202.89,202.76,8.71234472]
[1756643482878,7.24,202.89,202.77,4.65412441]
[1756643483078,7.24,202.89,202.78,4.65412441]
[1756643483274,7.24,202.89,202.79,4.65412441]